Cogmind - Beta 10 @@@ ROGUE MODE // 2020.09.21 @ 00:48:24 Player: DragoX Result: Destroyed by S-10 Pest with Light Assault Rifle Performance ------------- Evolutions (0) 0 Regions Visited (1) 200 Robots Destroyed (21) 105 Value Destroyed (620) 620 Prototype IDs (0) 0 Alien Tech Used (0) 0 Bonus (8) 8 TOTAL SCORE: 933 Bonus ------- High Alert Combat Kills 8 Cogmind --------- Core Integrity 0/250 Matter 137/300 Energy 123/125 System Corruption 0% Temperature Cool (0) Movement Rolling (110) Ox1 Location -10/Materials Parts ------- > --- POWER (1) -------- Light Ion Engine > --- PROPULSION (2) --- Compact Wheel Compact Wheel > --- UTILITY (2) ------ Large Storage Unit Large Storage Unit > --- WEAPON (2) ------- Autogun Autogun > --- INVENTORY (16) --- Large Storage Unit High-capacity Battery (400) Medium Matter Pod (11) Autogun Autogun Grenade Launcher Peak State ------------ > --- POWER ------------ Light Ion Engine > --- PROPULSION ------- Compact Wheel Compact Wheel > --- UTILITY ---------- Large Storage Unit Large Storage Unit > --- WEAPON ----------- Autogun Autogun > --- INVENTORY -------- Large Storage Unit High-capacity Battery Medium Matter Pod Autogun Autogun Grenade Launcher [Rating: 9] Favorites ----------- Power Light Ion Engine Engine Light Ion Engine Propulsion Light Treads Treads Light Treads Wheel Compact Wheel Utility Large Storage Unit Storage Large Storage Unit Weapon Grenade Launcher Energy Gun Medium Laser Ballistic Gun Autogun Launcher Grenade Launcher Build | -11 -10 ------- Run | Scr Mat Slots Evolved . | . . Power . | . . Propulsion . | . . Utility . | . . Weapon . | . . Parts Attached 21 | 7 14 Power 3 | 1 2 Engine 3 | 1 2 Core . | . . Reactor . | . . Propulsion 8 | 3 5 Treads 3 | 1 2 Leg . | . . Wheel 5 | 2 3 Hover . | . . Flight . | . . Utility 3 | 1 2 Device . | . . Storage 3 | 1 2 Processor . | . . Hackware . | . . Protection . | . . Artifact . | . . Weapon 7 | 2 5 Energy Gun 2 | 2 . Energy Cannon . | . . Ballistic Gun 2 | . 2 Ballistic Cannon . | . . Launcher 3 | . 3 Special Weapon . | . . Impact Weapon . | . . Slashing Weapon . | . . Piercing Weapon . | . . Special Melee Weapon . | . . Unidentified Prototypes . | . . Parts Lost 8 | . 8 Power 1 | . 1 Propulsion 3 | . 3 Utility . | . . Weapon 4 | . 4 Highest Loss Streak 4 | . 4 Average Slot Usage (%) 80 | . 80 Engine 8 | . 8 Treads 10 | . 10 Wheel 10 | . 10 Storage 25 | . 25 Energy Gun 2 | . 2 Ballistic Gun 10 | . 10 Launcher 11 | . 11 Naked Turns . | . . Heaviest Build 41 | 11 41 Greatest Support 40 | 26 40 Greatest Overweight (x) 2 | 2 2 Average Overweight (x) 1 | . 1 Largest Inventory Capacity 16 | 6 16 Average Capacity 13 | 5 14 Most Carried 7 | 6 7 Average Carried 4 | 3 4 Final Capacity 16 | 6 16 Final Carried 6 | 3 6 Class Distribution -------------------- 100% | Mutant Dominant Class ---------------- Mutant | -10/Materials Resources | -11 -10 ----------- Run | Scr Mat Matter Collected 406 | 231 175 Remotely . | . . Salvage Created 405 | . 405 Parts 28 | . 28 Haulers Intercepted . | . . Recyclers Shooed . | . . Parts Field Recycled . | . . Retrieved Matter . | . . Parts Self-Destructed . | . . Prevented . | . . Kills | -11 -10 ------- Run | Scr Mat Combat Hostiles Destroyed 17 | . 17 Guns 1 | . 1 AOE 16 | . 16 Classes Destroyed 6 | . 6 Worker 1 | . 1 Builder 1 | . 1 Operator 1 | . 1 Watcher 1 | . 1 Swarmer 3 | . 3 Grunt 14 | . 14 Best Kill Streak 7 | . 7 Combat Bots Only 6 | . 6 Max Kills in Single Turn 3 | . 3 Gunslinging . | . . Exploded 3 | . 3 Melee . | . . Uniques/NPCs Destroyed . | . . Combat | -11 -10 -------- Run | Scr Mat Damage Taken 931 | . 931 Core 252 | . 252 Absorbed by Shields . | . . Core Remaining (%) 100 | 100 . Volleys Fired 27 | . 27 Largest 2 | . 2 Hottest 90 | . 90 Shots Fired 33 | . 33 Gun 15 | . 15 Cannon . | . . Launcher 18 | . 18 Special . | . . Kinetic 2 | . 2 Thermal 10 | . 10 Explosive 18 | . 18 Electromagnetic 3 | . 3 Robot Hit Streak 6 | . 6 Robot Miss Streak 3 | . 3 Penetration Max . | . . Secondary Targets . | . . Shots Hit Robots 16 | . 16 Core Hits 36 | . 36 Critical Hits . | . . Critical Kills . | . . Critical Parts Destroyed . | . . Melee Attacks . | . . Impact . | . . Slashing . | . . Piercing . | . . Sneak Attacks . | . . Combat Hostiles . | . . Follow-up Attacks . | . . Damage Inflicted 1570 | . 1570 Guns 88 | . 88 Cannons . | . . Explosions 1482 | . 1482 Melee . | . . Ramming . | . . Kinetic . | . . Thermal 153 | . 153 Explosive 1390 | . 1390 Electromagnetic 27 | . 27 Impact . | . . Slashing . | . . Piercing . | . . Highest Corruption . | . . Average Corruption . | . . Corruption Purged . | . . Overload Shots . | . . Overflow Damage 92 | . 92 Projectiles . | . . Explosions 92 | . 92 Melee . | . . Knockbacks . | . . Impact . | . . Kinetic . | . . Secondary . | . . Self-Inflicted Damage 27 | . 27 Shots 2 | . 2 Rammed . | . . Targets Rammed . | . . Kicked . | . . Crushed . | . . Highest Temperature 310 | . 310 Average Temperature 138 | . 138 Received Heat Transfer 459 | . 459 Effects 1 | . 1 Energy Bleed 1 | . 1 Siege Activations . | . . Robots Corrupted . | . . Combat Hostiles . | . . Parts Fried . | . . Impact Corruptions . | . . Robots Melted . | . . Combat Hostiles . | . . Parts Melted . | . . Heat Transferred 285 | . 285 Parts Sabotaged . | . . Parts Stolen . | . . Parts Stripped . | . . Power Chain Reactions 1 | . 1 Missiles Intercepted . | . . Alert | -11 -10 ------- Run | Scr Mat Peak Influence 412 | . 412 Initial . | . . Average 185 | . 202 Maximum Alert Level 2 | . 2 Low Security (%) 30 | 100 24 Level 1 69 | . 75 Level 2 . | . . Level 3 . | . . Level 4 . | . . Level 5 . | . . High Security . | . . Max Security . | . . Squads Dispatched 4 | . 4 Investigation 1 | . 1 Extermination . | . . Reinforcement 3 | . 3 Assault . | . . Garrison . | . . Intercept . | . . Construction Impeded . | . . Haulers Reinforced . | . . Stealth | -11 -10 --------- Run | Scr Mat Distress Signals . | . . Communications Jammed . | . . Distress Signals . | . . Times Spotted 26 | . 26 Peak Tracking Total 7 | . 7 Tactical Retreats . | . . Traps | -11 -10 ------- Run | Scr Mat Traps Triggered 2 | . 2 Indirectly . | . . Trap Hack Attempts . | . . Triggered . | . . Disarmed . | . . Reprogrammed . | . . Reused . | . . Traps Extracted . | . . Installed . | . . Triggered . | . . Machines | -11 -10 ---------- Run | Scr Mat Machines Disabled 5 | . 5 Max in Single Turn 2 | . 2 Machines Sabotaged . | . . Garrisons Compromised . | . . Overloaded Fab Kills . | . . Fab Network Shutdowns . | . . Hacking | -11 -10 --------- Run | Scr Mat Machines Accessed . | . . Terminals . | . . Fabricators . | . . Repair Stations . | . . Recycling Units . | . . Scanalyzers . | . . Garrison Access . | . . Total Hacks . | . . Successful . | . . Failed . | . . Catastrophic . | . . Database Lockouts . | . . Manual . | . . Terminals . | . . Fabricators . | . . Repair Stations . | . . Recycling Units . | . . Scanalyzers . | . . Garrison Access . | . . Terminal Hacks . | . . Fabricator Hacks . | . . Repair Station Hacks . | . . Recycling Unit Hacks . | . . Scanalyzer . | . . Garrison Access Hacks . | . . Unauthorized Hacks . | . . Terminals . | . . Fabricators . | . . Repair Stations . | . . Recycling Units . | . . Scanalyzers . | . . Garrison Access . | . . Data Cores Recovered . | . . Used . | . . Hacking Detections . | . . Full Trace Events . | . . Feedback Events . | . . Feedback Blocked . | . . Robot Schematics Acquired . | . . Robots Built . | . . Matter . | . . Time . | . . Total Robot Build Rating . | . . Part Schematics Acquired . | . . Parts Built . | . . Matter . | . . Time . | . . Total Part Build Rating . | . . Parts Repaired . | . . Time . | . . Parts Recycled . | . . Recycled Matter . | . . Retrieved Matter . | . . Retrieved Components . | . . Parts Scanalyzed . | . . Part Schematics Acquired . | . . Parts Damaged . | . . Bothacking | -11 -10 ------------ Run | Scr Mat Used RIF Installer . | . . Robots Hacked . | . . Non-combat . | . . Combat . | . . Robot Hacks Applied . | . . Relay Couplers Released . | . . Robots Rewired . | . . Allies Hacked . | . . Hacks Repelled . | . . Allies | -11 -10 -------- Run | Scr Mat Total Allies . | . . Largest Group . | . . Highest-Rated Group . | . . Highest-Rated Ally . | . . Total Orders . | . . Ally Attacks . | . . Total Damage . | . . Kills . | . . Allies Corrupted . | . . Allies Melted . | . . Intel | -11 -10 ------- Run | Scr Mat Robot Analysis Total . | . . Derelict Logs Recovered . | . . Drone Launches . | . . Drone Recoveries . | . . Exploration | -11 -10 ------------- Run | Scr Mat Turns Passed 719 | 61 658 Spaces Moved 443 | 40 403 Core 15 | 15 . Treads 125 | 3 122 Legs . | . . Wheels 303 | 22 281 Hover . | . . Flight . | . . Fastest Speed 50 | 50 90 Average Speed 127 | 112 129 Slowest Speed 180 | 160 180 Overloaded Moves . | . . Propulsion Burnouts . | . . Robots Hopped . | . . Cave-ins Triggered . | . . Exploration Rate (%) 43 | 5 82 Regions Visited 1 Branch Regions . Pre-discovered Areas . | . . Known Exits Taken . | . . Unknown Exits Taken 1 | 1 . Scrap Searched . | . . Spaces Dug . | . . Terrain Destroyed 123 | . 123 Melee . | . . Projectile . | . . AOE 123 | . 123 Terrain Rammed . | . . Walls Destroyed . | . . Machines Disabled . | . . Actions | -11 -10 --------- Run | Scr Mat Total 564 | 55 509 Wait 50 | . 50 Move 442 | 39 403 Hop . | . . Pick Up 21 | 8 13 Fast Attach 1 | 1 . Attach 17 | 6 11 Detach 2 | 1 1 Swap 3 | . 3 Drop 1 | . 1 Fire 27 | . 27 Melee . | . . Ram . | . . Kick . | . . Crush . | . . Escape Stasis . | . . Rewire . | . . Trap . | . . Miscellaneous . | . . Route ------- -11/Scrapyard -10/Materials (discovered 3 exits: [*Mat x2] / [*Min]) History --------- Turn | Location | Event 22 | -11/Scrapyard | Discovered new exit (range 14) 62 | -11/Scrapyard | Entered Materials 133 | -10/Materials | Core integrity fell below 50% 153 | -10/Materials | Core integrity fell below 20% 226 | -10/Materials | Discovered new exit (range 9) 310 | -10/Materials | Build established: Mutant 461 | -10/Materials | Lost 4 parts (2n2w) 489 | -10/Materials | Discovered new exit (range 15) 683 | -10/Materials | Discovered new exit (range 16) 720 | -10/Materials | Destroyed by S-10 Pest with Light Assault Rifle Last Messages --------------- 00478_ Acquired Autogun. 00484_ U-05 Engineer lays Concrete. 00486_ Acquired 10 matter. 00486_ U-05 Engineer lays Concrete. 00488_ Acquired 15 matter. 00489_ EXIT=FOUND 00491_ The unstable cave ceiling collapses. 00511_ U-05 Engineer lays Concrete. 00513_ U-05 Engineer builds a Wall. 00516_ The unstable cave ceiling collapses. 00520_ U-05 Engineer builds a Wall. 00529_ The unstable cave ceiling collapses. 00531_ U-05 Engineer lays Concrete. 00535_ R-06 Scavenger collects Ion Engine. 00535_ U-05 Engineer lays Concrete. 00545_ K-01 Serf collects debris. 00576_ K-01 Serf cleans the Terminal. 00636_ Acquired Hcp. Battery. 00676_ Acquired Com. Wheel. 00683_ EXIT=FOUND Map ----- +----------------------------------------------------+ | | | | | | | | | | | | | | | | | | | | | | | | | | | | | ??????????????????????????????????????????????? | | ??????????????????????????????????????????????? | | ??????????????????????????????????????????????? | | ??????????????????????????????????????????????? | | ??????????????????????????????????????????????? | | ??????????????????????????????????????????????? | | ??????????????????????????????????????????????? | | ??????????????????????????????????????????????? | | ??????????????????????????????????????????????? | | ??????????????????????????????????????????????? | | ?????????????################### #????????????? | | ?????? s @ #????????????? | | ?????????????#######+###### #########?????????? | | ?????????????????? ??##+##### #?????????? | | ???????########## = ! #?# # < #?????????? | | ??????? # #?# # #?????????? | | ??????# = """# [ #?# " " + +?????????? | | ??????# Y"# #?# "R" # #?????????? | | ??????# """# #?# """ # #?????????? | | ??????# """ ########?# # #?????????? | | ??????# """ !#????????######## #?????????? | | ##????# """ #???????????????# ####??????? | | "#????# #???????????????# !!##?????? | | "#########+#############????????# !#?????? | | !!! ##### #????????# !#?????? | | !!! #????????# !#?????? | | !! !#?######## !#?????? | | ! #?# # !!##?????? | | ##### #?# """ # ####??????? | | ##???## ##?# """ # #?????????? | | #?????# #??# """ + #?????????? | | ####### #??# # #?????????? | | ## # #??# # #?????????? | | ######### ##% ! # #??######## ##????????? | | ?????#" # # ########## #????????? | | ?????#"" # ! # ### #????????? | +----------------------------------------------------+ Best States ------------- Heat Dissipation 25 Energy Generation 10 Energy Capacity 125 Matter Stores 300 Matter Capacity 300 Sight Range 16 Terrain Scan Density 10 Evasion (%) 42 Recoil Reduction 2 Item Schematics ----------------- None Robot Schematics ------------------ None Fabricated ------------ Nothing Alien Tech Used ----------------- None Achievements -------------- None Challenges ------------ None Game ------ Seed SystemSeismicScrap Manual? 0 Play Time 00:07:47 Cumulative 7.1 hours Start 2020.09.21 @ 00:40:47 End 2020.09.21 @ 00:48:24 Sessions 1 Manual Loads 0 Difficulty Rogue Special Mode None Game No. 13 Rogue 13 Adventurer 0 Explorer 0 Win Type - Total 0 Types 0/0/0/0/0/0/0/0/0 Lore% 10 Gallery% 11 Achievement% 12 Wizard Run 0 Options --------- ASCII 0 Keyboard 0 Movement Mouse Keybinds 0 Fullscreen 1 Font 18/X11 Map View 76x50 Tactical HUD 1 Map Filters NONE Filters NONE Steam 0 RUN: f792c9a9-b60a-41cb-b588-1ab83df0f2a1